[Event "Mitropa Online Cup Women 2021"]
[Site "Hybrid"]
[Date "2021.05.04"]
[Round "8.1"]
[White "Lubbe, Melanie"]
[Black "Worek, Joanna"]
[Result "1/2-1/2"]
[ECO "B83"]
[WhiteElo "2274"]
[BlackElo "2322"]
[Annotator "RC"]
[PlyCount "94"]
[EventDate "2021.05.04"]
[EventType "team-tourn"]
[EventCountry "NET"]
[SourceTitle "playchess.com"]
[Source "ChessBase"]
[SourceQuality "1"]
[WhiteTeam "Germany"]
[BlackTeam "Czech Republic"]
[WhiteTeamCountry "GER"]
[BlackTeamCountry "CZE"]
[TimeControl "40/5400+30:1800+30"]

1. e4 {[%emt 0:00:00]} c5 {[%emt 0:00:06]} 2. Nf3 {[%emt 0:00:08]} d6 {[%emt 0:00:08]} 3. d4 {[%emt 0:00:11]} cxd4 {[%emt 0:00:05]} 4. Nxd4 {[%emt 0:00:07]} Nf6 {[%emt 0:00:06]} 5. Nc3 {[%emt 0:00:06]} e6 {[%emt 0:00:10]} 6. Be3 {[%emt 0:05:47]} Be7 {[%emt 0:00:30]} 7. Be2 {[%emt 0:01:22]} Nc6 {[%emt 0:00:12]} 8. O-O {[%emt 0:00:39]} O-O {[%emt 0:01:09]} 9. f4 {[%emt 0:10:13]} Bd7 {[%emt 0:00:24]} 10. Ndb5 {[%emt 0:06:07]} Qb8 {[%emt 0:01:53]} 11. a4 {[%emt 0:01:16]} Nb4 {[%emt 0:03:25]} 12. Bf3 {[%emt 0:05:47]} e5 {[%emt 0:13:44]} 13. Rf2 {[%emt 0:07:55]} a6 {[%emt 0:10:49]} 14. Na3 {[%emt 0:00:21]} b5 {[%emt 0:00:12]} 15. Qe2 {[%emt 0:23:40]} Bc6 {[%emt 0:11:32]} 16. axb5 {[%emt 0:02:51]} axb5 {[%emt 0:00:15]} 17. Rd1 {[%emt 0:00:09]} Qb7 {[%emt 0:11:59]} 18. Naxb5 {[%emt 0:07:39]} Nxe4 {[%emt 0:06:53]} 19. Nxe4 {[%emt 0:01:55]} Bxe4 {[%emt 0:01:47]} 20. Nxd6 {[%emt 0:07:03]} Bxd6 {[%emt 0:00:08]} 21. Rxd6 {[%emt 0:00:08]} Bxf3 {[%emt 0:04:13]} 22. Rxf3 {[%emt 0:00:42]} Nd5 {[%emt 0:03:34]} 23. fxe5 {[%emt 0:00:52]} Ra1+ {[%emt 0:01:10]} 24. Rf1 {[%emt 0:02:00]} Rxf1+ {[%emt 0:00:18]} 25. Kxf1 {[%emt 0:00:07]} Nxe3+ {[%emt 0:00:22]} 26. Qxe3 {[%emt 0:00:03]} Qxb2 {[%emt 0:00:11]} 27. Qe2 {[%emt 0:02:47]} h6 {[%emt 0:01:51]} 28. c4 {[%emt 0:01:05]} Qc1+ {[%emt 0:00:17]} 29. Rd1 {[%emt 0:00:17]} Qf4+ {[%emt 0:00:05]} 30. Kg1 {[%emt 0:00:15]} Re8 {[%emt 0:01:02]} 31. Re1 {[%emt 0:03:27]} Qd4+ {[%emt 0:01:11]} 32. Kh1 {[%emt 0:00:07]} Re6 {[%emt 0:05:03]} 33. h3 {[%emt 0:05:38]} Rc6 {[%emt 0:06:31]} 34. Rc1 {[%emt 0:00:21]} g6 {[%emt 0:01:48]} 35. Qa2 {[%emt 0:01:34]} Kg7 {[%emt 0:00:23]} 36. Qa4 {[%emt 0:00:38]} Re6 {[%emt 0:03:58]} 37. Qb5 {[%emt 0:01:31]} Rxe5 {[%emt 0:00:41]} 38. c5 {[%emt 0:00:08]} Qd2 {[%emt 0:03:26]} 39. Qf1 {[%emt 0:01:25]} Re3 {[%emt 0:04:13]} 40. c6 {[%emt 0:00:00]} Rc3 {[%emt 0:00:00]} 41. Rxc3 {[%emt 0:09:59]} Qxc3 {[%emt 0:01:03]} 42. Qf3 {[%emt 0:01:14]} Qc5 {[%emt 0:00:28]} 43. Qe4 {[%emt 0:03:54]} Kf8 {[%emt 0:01:38]} 44. Qa4 {[%emt 0:02:31]} Ke7 {[%emt 0:03:38]} 45. Qh4+ {[%emt 0:01:13]} g5 {[%emt 0:07:41]} 46. Qe4+ {[%emt 0:00:22]} Kd6 {[%emt 0:01:01]} 47. Qe8 {[%emt 0:09:30]} Qxc6 {[%emt 0:01:40]} 1/2-1/2

[Event "Mitropa Online Cup Women 2021"]
[Site "Hybrid"]
[Date "2021.05.04"]
[Round "8.1"]
[White "Schneider, Jana"]
[Black "Olsarova, Karolina"]
[Result "1/2-1/2"]
[ECO "B11"]
[WhiteElo "2272"]
[BlackElo "2290"]
[Annotator "RC"]
[PlyCount "129"]
[EventDate "2021.05.04"]
[EventType "team-tourn"]
[EventCountry "NET"]
[SourceTitle "playchess.com"]
[Source "ChessBase"]
[SourceQuality "1"]
[WhiteTeam "Germany"]
[BlackTeam "Czech Republic"]
[WhiteTeamCountry "GER"]
[BlackTeamCountry "CZE"]
[TimeControl "40/5400+30:1800+30"]

1. e4 {[%emt 0:00:00]} c6 {[%emt 0:00:06]} 2. Nc3 {[%emt 0:00:17]} d5 {[%emt 0:00:09]} 3. Nf3 {[%emt 0:00:07]} Bg4 {[%emt 0:00:28]} 4. h3 {[%emt 0:00:09]} Bh5 {[%emt 0:00:15]} 5. g4 {[%emt 0:00:39]} Bg6 {[%emt 0:00:07]} 6. exd5 {[%emt 0:00:08]} cxd5 {[%emt 0:00:28]} 7. Ne5 {[%emt 0:00:33]} Nc6 {[%emt 0:01:02]} 8. Bb5 {[%emt 0:01:24]} Rc8 {[%emt 0:00:25]} 9. h4 {[%emt 0:02:57]} f6 {[%emt 0:10:37]} 10. Bxc6+ {[%emt 0:13:50]} bxc6 {[%emt 0:00:24]} 11. Nxg6 {[%emt 0:00:28]} hxg6 {[%emt 0:00:08]} 12. d4 {[%emt 0:00:52]} e6 {[%emt 0:04:51]} 13. Qd3 {[%emt 0:01:15]} Kf7 {[%emt 0:06:05]} 14. h5 {[%emt 0:01:46]} gxh5 {[%emt 0:16:27]} 15. gxh5 {[%emt 0:00:28]} Ne7 {[%emt 0:01:43]} 16. Ne2 {[%emt 0:02:20]} Nf5 {[%emt 0:04:27]} 17. Ng3 {[%emt 0:01:56]} Qe8 {[%emt 0:07:18]} 18. Be3 {[%emt 0:11:46]} Nxe3 {[%emt 0:08:00]} 19. fxe3 {[%emt 0:02:10]} Bd6 {[%emt 0:01:55]} 20. Nf1 {[%emt 0:18:35]} Rh6 {[%emt 0:04:35]} 21. O-O-O {[%emt 0:01:08]} c5 {[%emt 0:04:45]} 22. e4 {[%emt 0:07:34]} cxd4 {[%emt 0:09:17]} 23. exd5 {[%emt 0:00:59]} Bf4+ {[%emt 0:00:51]} 24. Kb1 {[%emt 0:00:17]} e5 {[%emt 0:00:45]} 25. Ng3 {[%emt 0:01:04]} Bxg3 {[%emt 0:01:18]} 26. Qxg3 {[%emt 0:00:08]} Qd7 {[%emt 0:02:20]} 27. c3 {[%emt 0:05:33]} dxc3 {[%emt 0:01:45]} 28. bxc3 {[%emt 0:01:48]} Qf5+ {[%emt 0:03:02]} 29. Qd3 {[%emt 0:01:34]} e4 {[%emt 0:05:12]} 30. Qa6 {[%emt 0:01:18]} e3+ {[%emt 0:01:22]} 31. Ka1 {[%emt 0:06:23]} Re8 {[%emt 0:00:59]} 32. d6 {[%emt 0:01:17]} Qc5 {[%emt 0:00:50]} 33. Qb7+ {[%emt 0:01:31]} Kf8 {[%emt 0:00:50]} 34. Kb2 {[%emt 0:06:34]} e2 {[%emt 0:00:43]} 35. Rdg1 {[%emt 0:00:07]} Qb6+ {[%emt 0:00:39]} 36. Qxb6 {[%emt 0:00:09]} axb6 {[%emt 0:00:01]} 37. Re1 {[%emt 0:01:47]} Re5 {[%emt 0:02:13]} 38. Rh2 {[%emt 0:04:32]} Rhxh5 {[%emt 0:00:30]} 39. Rhxe2 {[%emt 0:00:37]} Rxe2+ {[%emt 0:00:57]} 40. Rxe2 {[%emt 0:00:00]} Rd5 {[%emt 0:00:00]} 41. Re6 {[%emt 0:00:16]} Kf7 {[%emt 0:04:50]} 42. Re7+ {[%emt 0:00:52]} Kg6 {[%emt 0:00:09]} 43. Rd7 {[%emt 0:06:00]} Kf5 {[%emt 0:14:01]} 44. c4 {[%emt 0:00:57]} Rd2+ {[%emt 0:04:51]} 45. Kc3 {[%emt 0:00:08]} Rd1 {[%emt 0:00:33]} 46. Rxg7 {[%emt 0:03:53]} Rxd6 {[%emt 0:01:12]} 47. Kb4 {[%emt 0:00:45]} Ke5 {[%emt 0:03:05]} 48. Kb5 {[%emt 0:00:28]} f5 {[%emt 0:00:57]} 49. Re7+ {[%emt 0:02:35]} Kd4 {[%emt 0:03:09]} 50. Rf7 {[%emt 0:00:17]} Ke4 {[%emt 0:00:10]} 51. a4 {[%emt 0:01:26]} f4 {[%emt 0:00:41]} 52. c5 {[%emt 0:00:24]} bxc5 {[%emt 0:00:33]} 53. Kxc5 {[%emt 0:00:08]} Rd5+ {[%emt 0:02:02]} 54. Kb6 {[%emt 0:00:08]} Rd6+ {[%emt 0:00:39]} 55. Kc5 {[%emt 0:00:27]} Rd1 {[%emt 0:00:25]} 56. a5 {[%emt 0:00:22]} f3 {[%emt 0:01:06]} 57. a6 {[%emt 0:00:13]} Ra1 {[%emt 0:00:18]} 58. a7 {[%emt 0:00:29]} Ke3 {[%emt 0:00:12]} 59. Kb6 {[%emt 0:00:22]} f2 {[%emt 0:00:37]} 60. Kb7 {[%emt 0:00:34]} Rb1+ {[%emt 0:00:31]} 61. Kc8 {[%emt 0:00:29]} Rc1+ {[%emt 0:00:18]} 62. Kb8 {[%emt 0:00:23]} Rb1+ {[%emt 0:00:10]} 63. Kc8 {[%emt 0:00:11]} Ra1 {[%emt 0:00:12]} 64. Kb8 {[%emt 0:00:17]} Rb1+ {[%emt 0:00:08]} 65. Kc8 {[%emt 0:00:08]} 1/2-1/2

[Event "Mitropa Online Cup Women 2021"]
[Site "Hybrid"]
[Date "2021.05.04"]
[Round "8.1"]
[White "Richterova, Natasa"]
[Black "Sieber, Fiona"]
[Result "1/2-1/2"]
[ECO "B37"]
[WhiteElo "2188"]
[BlackElo "2275"]
[Annotator "NA RC"]
[PlyCount "76"]
[EventDate "2021.05.04"]
[EventType "team-tourn"]
[EventCountry "NET"]
[SourceTitle "playchess.com"]
[Source "ChessBase"]
[SourceQuality "1"]
[WhiteTeam "Czech Republic"]
[BlackTeam "Germany"]
[WhiteTeamCountry "CZE"]
[BlackTeamCountry "GER"]
[TimeControl "40/5400+30:1800+30"]

1. Nf3 {[%emt 0:00:00]} c5 {[%emt 0:05:10]} 2. c4 {[%emt 0:00:31]} Nc6 {[%emt 0:00:35]} 3. Nc3 {[%emt 0:00:21]} g6 {[%emt 0:01:51]} 4. d4 {[%emt 0:02:10]} cxd4 {[%emt 0:00:34]} 5. Nxd4 {[%emt 0:00:05]} Bg7 {[%emt 0:00:16]} 6. Nc2 {[%emt 0:02:48]} Nf6 {[%emt 0:02:51]} 7. e4 {[%emt 0:03:53]} O-O {[%emt 0:00:25]} 8. Be2 {[%emt 0:00:23]} d6 {[%emt 0:01:26]} 9. O-O {[%emt 0:01:24]} Nd7 {[%emt 0:15:48]} 10. Qd2 {[%emt 0:12:23]} Nc5 {[%emt 0:02:31]} 11. f3 {[%emt 0:07:38]} a5 {[%emt 0:05:57]} 12. Kh1 {[%emt 0:05:59]} a4 {[%emt 0:03:58]} 13. Nb5 {[%emt 0:09:05]} Be6 {[%emt 0:12:21]} 14. Rb1 {[%emt 0:07:39]} f5 {[%emt 0:05:52]} 15. Ncd4 {[%emt 0:03:10]} fxe4 {[%emt 0:09:03]} 16. Nxe6 {[%emt 0:02:52]} Nxe6 {[%emt 0:00:07]} 17. Qd5 {[%emt 0:00:28]} Qd7 {[%emt 0:00:26]} 18. Qxe4 {[%emt 0:00:16]} Rf5 {[%emt 0:01:39]} 19. f4 {[%emt 0:06:47]} Nc5 {[%emt 0:02:36]} 20. Qe3 {[%emt 0:03:35]} Rf7 {[%emt 0:01:24]} 21. Bd2 {[%emt 0:07:59]} Raf8 {[%emt 0:05:40]} 22. b4 {[%emt 0:05:30]} axb3 {[%emt 0:00:45]} 23. axb3 {[%emt 0:00:03]} e5 {[%emt 0:05:28]} 24. fxe5 {[%emt 0:01:27]} Bxe5 {[%emt 0:02:54]} 25. Rxf7 {[%emt 0:00:28]} Qxf7 {[%emt 0:00:19]} 26. Bf3 {[%emt 0:02:22]} Qf5 {[%emt 0:01:33]} 27. Rd1 {[%emt 0:03:44]} Qc2 {[%emt 0:05:21]} 28. Re1 {[%emt 0:09:41]} Nd3 {[%emt 0:04:43]} 29. Rf1 {[%emt 0:00:45]} Nf4 {[%emt 0:00:51]} 30. Be4 {[%emt 0:00:39]} Qb2 {[%emt 0:00:29]} 31. g3 {[%emt 0:00:42]} Ne6 {[%emt 0:00:22]} 32. Rxf8+ {[%emt 0:00:26]} Kxf8 {[%emt 0:00:24]} 33. Bd5 {[%emt 0:00:39]} Qb1+ {[%emt 0:01:37]} 34. Kg2 {[%emt 0:00:04]} Qf5 {[%emt 0:00:33]} 35. Qh6+ {[%emt 0:00:44]} Bg7 {[%emt 0:00:36]} 36. Qe3 {[%emt 0:00:03]} Be5 {[%emt 0:00:16]} 37. Qh6+ {[%emt 0:00:07]} Bg7 {[%emt 0:00:02]} 38. Qe3 {[%emt 0:00:05]} Be5 {[%emt 0:00:03]} 1/2-1/2

[Event "Mitropa Online Cup Women 2021"]
[Site "Hybrid"]
[Date "2021.05.04"]
[Round "8.2"]
[White "Sankova, Stella"]
[Black "Mueller-Seps, Monika"]
[Result "0-1"]
[ECO "C01"]
[WhiteElo "2087"]
[BlackElo "2243"]
[Annotator "NA"]
[PlyCount "48"]
[EventDate "2021.05.04"]
[EventType "team-tourn"]
[EventCountry "NET"]
[SourceTitle "playchess.com"]
[Source "ChessBase"]
[SourceQuality "1"]
[WhiteTeam "Slovakia"]
[BlackTeam "Switzerland"]
[WhiteTeamCountry "SVK"]
[BlackTeamCountry "SUI"]
[TimeControl "40/5400+30:1800+30"]

1. e4 {[%emt 0:00:00]} e6 {[%emt 0:00:08]} 2. d4 {[%emt 0:00:19]} d5 {[%emt 0:00:07]} 3. Nc3 {[%emt 0:00:10]} Bb4 {[%emt 0:00:06]} 4. exd5 {[%emt 0:01:28]} exd5 {[%emt 0:01:37]} 5. Bd3 {[%emt 0:00:11]} Nc6 {[%emt 0:00:06]} 6. a3 {[%emt 0:01:05]} Bxc3+ {[%emt 0:00:17]} 7. bxc3 {[%emt 0:00:07]} Nge7 {[%emt 0:00:06]} 8. Qf3 {[%emt 0:01:26]} Be6 {[%emt 0:00:30]} 9. Ne2 {[%emt 0:00:46]} Qd7 {[%emt 0:00:41]} 10. O-O {[%emt 0:03:12]} O-O-O {[%emt 0:05:24]} 11. a4 {[%emt 0:05:04]} Bf5 {[%emt 0:04:25]} 12. Ba3 {[%emt 0:05:55]} h5 {[%emt 0:21:04]} 13. Rfb1 {[%emt 0:08:47]} g5 {[%emt 0:10:54]} 14. Nc1 {[%emt 0:05:25]} g4 {[%emt 0:17:14]} 15. Qd1 {[%emt 0:02:12]} Rdg8 {[%emt 0:14:08]} 16. Nb3 {[%emt 0:07:19]} b6 {[%emt 0:00:15]} 17. Bb5 {[%emt 0:03:48]} Rg6 {[%emt 0:08:13]} 18. a5 {[%emt 0:04:30]} g3 {[%emt 0:00:13]} 19. fxg3 {[%emt 0:09:42]} h4 {[%emt 0:00:11]} 20. Qf1 {[%emt 0:09:36]} hxg3 {[%emt 0:02:21]} 21. h3 {[%emt 0:09:12]} Bxh3 {[%emt 0:01:37]} 22. Qxf7 {[%emt 0:03:56]} Bxg2 {[%emt 0:01:13]} 23. Bxe7 {[%emt 0:01:00]} Qh3 {[%emt 0:02:06]} 24. Ba6+ {[%emt 0:00:55]} Kb8 {[%emt 0:00:09]} 0-1

[Event "Mitropa Online Cup Women 2021"]
[Site "Hybrid"]
[Date "2021.05.04"]
[Round "8.2"]
[White "Kovarikova, Maria"]
[Black "Tamrazyan, Gohar"]
[Result "0-1"]
[ECO "B32"]
[WhiteElo "1899"]
[BlackElo "1842"]
[Annotator "NA RC"]
[PlyCount "76"]
[EventDate "2021.05.04"]
[EventType "team-tourn"]
[EventCountry "NET"]
[SourceTitle "playchess.com"]
[Source "ChessBase"]
[SourceQuality "1"]
[WhiteTeam "SVK"]
[BlackTeam "SUI"]
[WhiteTeamCountry "SVK"]
[TimeControl "40/5400+30:1800+30"]

1. e4 {[%emt 0:00:00]} c5 {[%emt 0:00:08]} 2. Nf3 {[%emt 0:00:08]} Nc6 {[%emt 0:00:07]} 3. d4 {[%emt 0:00:16]} cxd4 {[%emt 0:00:04]} 4. Nxd4 {[%emt 0:00:07]} e5 {[%emt 0:00:07]} 5. Nb5 {[%emt 0:00:25]} d6 {[%emt 0:00:06]} 6. N1c3 {[%emt 0:01:05]} a6 {[%emt 0:00:27]} 7. Na3 {[%emt 0:00:25]} b5 {[%emt 0:00:06]} 8. Nd5 {[%emt 0:00:40]} Nge7 {[%emt 0:00:14]} 9. c4 {[%emt 0:00:46]} Nd4 {[%emt 0:00:11]} 10. Be3 {[%emt 0:02:55]} Nxd5 {[%emt 0:00:13]} 11. cxd5 {[%emt 0:00:20]} g6 {[%emt 0:00:19]} 12. Bxd4 {[%emt 0:04:06]} exd4 {[%emt 0:00:06]} 13. Qxd4 {[%emt 0:02:21]} Qa5+ {[%emt 0:00:15]} 14. Qd2 {[%emt 0:02:22]} Qxd2+ {[%emt 0:00:15]} 15. Kxd2 {[%emt 0:00:17]} Bg7 {[%emt 0:00:17]} 16. Kc2 {[%emt 0:06:22]} f5 {[%emt 0:01:46]} 17. Bd3 {[%emt 0:03:25]} O-O {[%emt 0:02:13]} 18. f3 {[%emt 0:03:42]} fxe4 {[%emt 0:08:12]} 19. Bxe4 {[%emt 0:00:35]} Bf5 {[%emt 0:01:15]} 20. Bxf5 {[%emt 0:02:23]} Rxf5 {[%emt 0:00:09]} 21. Rad1 {[%emt 0:03:23]} Rc8+ {[%emt 0:01:00]} 22. Kb1 {[%emt 0:00:40]} Rc5 {[%emt 0:01:24]} 23. Rhe1 {[%emt 0:02:12]} Kf7 {[%emt 0:05:40]} 24. Nc2 {[%emt 0:06:30]} Rfxd5 {[%emt 0:10:08]} 25. Nb4 {[%emt 0:05:06]} Rxd1+ {[%emt 0:00:09]} 26. Rxd1 {[%emt 0:00:07]} a5 {[%emt 0:02:12]} 27. Nd3 {[%emt 0:01:12]} Rg5 {[%emt 0:21:32]} 28. g4 {[%emt 0:05:34]} h5 {[%emt 0:04:12]} 29. h3 {[%emt 0:03:48]} Rd5 {[%emt 0:03:41]} 30. f4 {[%emt 0:03:17]} Rd4 {[%emt 0:03:17]} 31. Kc2 {[%emt 0:01:23]} hxg4 {[%emt 0:04:08]} 32. hxg4 {[%emt 0:00:45]} Rc4+ {[%emt 0:08:10]} 33. Kd2 {[%emt 0:01:00]} g5 {[%emt 0:02:50]} 34. Rf1 {[%emt 0:05:00]} gxf4 {[%emt 0:00:30]} 35. Nxf4 {[%emt 0:01:43]} Bh6 {[%emt 0:00:57]} 36. Ke3 {[%emt 0:00:49]} d5 {[%emt 0:00:41]} 37. g5 {[%emt 0:01:09]} Bxg5 {[%emt 0:00:28]} 38. Kf3 {[%emt 0:00:07]} Rxf4+ {[%emt 0:00:10]} 0-1

[Event "Mitropa Online Cup Women 2021"]
[Site "Hybrid"]
[Date "2021.05.04"]
[Round "8.4"]
[White "Froewis, Annika"]
[Black "Urh, Zala"]
[Result "1/2-1/2"]
[ECO "B33"]
[WhiteElo "2143"]
[BlackElo "2173"]
[Annotator "NA"]
[PlyCount "64"]
[EventDate "2021.05.04"]
[EventType "team-tourn"]
[EventCountry "NET"]
[SourceTitle "playchess.com"]
[Source "ChessBase"]
[SourceQuality "1"]
[WhiteTeam "Austria"]
[BlackTeam "Slovenia"]
[WhiteTeamCountry "AUT"]
[BlackTeamCountry "SLO"]
[TimeControl "40/5400+30:1800+30"]

1. e4 {[%emt 0:00:00]} c5 {[%emt 0:00:16]} 2. Nf3 {[%emt 0:00:04]} Nc6 {[%emt 0:00:07]} 3. d4 {[%emt 0:00:07]} cxd4 {[%emt 0:00:06]} 4. Nxd4 {[%emt 0:00:03]} Nf6 {[%emt 0:00:12]} 5. Nc3 {[%emt 0:00:14]} e5 {[%emt 0:00:19]} 6. Ndb5 {[%emt 0:00:04]} d6 {[%emt 0:00:11]} 7. Bg5 {[%emt 0:00:06]} a6 {[%emt 0:00:15]} 8. Na3 {[%emt 0:00:03]} b5 {[%emt 0:00:06]} 9. Nd5 {[%emt 0:00:11]} Be7 {[%emt 0:00:15]} 10. Bxf6 {[%emt 0:00:04]} Bxf6 {[%emt 0:00:09]} 11. c3 {[%emt 0:00:06]} Bb7 {[%emt 0:00:22]} 12. Nc2 {[%emt 0:08:24]} Ne7 {[%emt 0:00:25]} 13. Ncb4 {[%emt 0:04:37]} Nxd5 {[%emt 0:02:10]} 14. Nxd5 {[%emt 0:00:05]} O-O {[%emt 0:04:21]} 15. a4 {[%emt 0:05:12]} Bc6 {[%emt 0:03:46]} 16. axb5 {[%emt 0:05:18]} axb5 {[%emt 0:00:53]} 17. Rb1 {[%emt 0:13:59]} Bg5 {[%emt 0:06:55]} 18. Qb3 {[%emt 0:04:49]} g6 {[%emt 0:06:17]} 19. Be2 {[%emt 0:08:33]} Kh8 {[%emt 0:03:41]} 20. O-O {[%emt 0:00:43]} f5 {[%emt 0:02:13]} 21. Bxb5 {[%emt 0:12:43]} Rb8 {[%emt 0:07:06]} 22. c4 {[%emt 0:00:09]} fxe4 {[%emt 0:04:19]} 23. Rbd1 {[%emt 0:04:43]} Qc8 {[%emt 0:06:48]} 24. Qa3 {[%emt 0:02:22]} Bxb5 {[%emt 0:13:00]} 25. cxb5 {[%emt 0:04:50]} Rxb5 {[%emt 0:03:51]} 26. Qxd6 {[%emt 0:01:53]} Qb8 {[%emt 0:00:40]} 27. Qxb8 {[%emt 0:08:30]} Rfxb8 {[%emt 0:00:10]} 28. Nc3 {[%emt 0:01:31]} Rxb2 {[%emt 0:00:57]} 29. Nxe4 {[%emt 0:00:27]} Be7 {[%emt 0:00:53]} 30. g3 {[%emt 0:02:19]} Kg7 {[%emt 0:01:28]} 31. Kg2 {[%emt 0:01:03]} Kf7 {[%emt 0:01:05]} 32. Rfe1 {[%emt 0:03:12]} Ke6 {[%emt 0:02:12]} 1/2-1/2

[Event "Mitropa Online Cup Women 2021"]
[Site "Hybrid"]
[Date "2021.05.04"]
[Round "8.4"]
[White "Vicze, Kata"]
[Black "Ruzic, Pia Marie"]
[Result "0-1"]
[ECO "C01"]
[WhiteElo "1809"]
[BlackElo "1990"]
[Annotator "NA"]
[PlyCount "86"]
[EventDate "2021.05.04"]
[EventType "team-tourn"]
[EventCountry "NET"]
[SourceTitle "playchess.com"]
[Source "ChessBase"]
[SourceQuality "1"]
[WhiteTeam "AUT"]
[BlackTeam "SLO"]
[BlackTeamCountry "SLO"]
[TimeControl "40/5400+30:1800+30"]

1. e4 {[%emt 0:00:00]} e6 {[%emt 0:00:06]} 2. d4 {[%emt 0:00:06]} d5 {[%emt 0:00:02]} 3. exd5 {[%emt 0:00:04]} exd5 {[%emt 0:00:03]} 4. Nf3 {[%emt 0:00:06]} Nf6 {[%emt 0:00:14]} 5. Bd3 {[%emt 0:00:07]} Bd6 {[%emt 0:00:04]} 6. Qe2+ {[%emt 0:00:05]} Be6 {[%emt 0:00:23]} 7. O-O {[%emt 0:01:04]} O-O {[%emt 0:00:12]} 8. Bg5 {[%emt 0:00:35]} Nbd7 {[%emt 0:03:17]} 9. Nc3 {[%emt 0:01:59]} c6 {[%emt 0:02:57]} 10. Ne5 {[%emt 0:03:52]} Qb6 {[%emt 0:10:32]} 11. Nxd7 {[%emt 0:04:10]} Nxd7 {[%emt 0:00:20]} 12. Qh5 {[%emt 0:04:01]} g6 {[%emt 0:00:19]} 13. Qh4 {[%emt 0:01:33]} Qxb2 {[%emt 0:23:14]} 14. Ne2 {[%emt 0:04:17]} Qb6 {[%emt 0:00:35]} 15. f4 {[%emt 0:02:20]} f5 {[%emt 0:05:35]} 16. Qe1 {[%emt 0:08:34]} Nf6 {[%emt 0:06:36]} 17. h4 {[%emt 0:02:19]} Ne4 {[%emt 0:13:54]} 18. Bh6 {[%emt 0:10:58]} Rfe8 {[%emt 0:01:06]} 19. h5 {[%emt 0:06:21]} Bb4 {[%emt 0:05:57]} 20. Qh4 {[%emt 0:05:18]} Be7 {[%emt 0:02:35]} 21. Qe1 {[%emt 0:05:20]} Bf6 {[%emt 0:00:50]} 22. c3 {[%emt 0:04:28]} Bf7 {[%emt 0:07:07]} 23. hxg6 {[%emt 0:04:36]} hxg6 {[%emt 0:00:47]} 24. Qc1 {[%emt 0:01:48]} Nxc3 {[%emt 0:02:17]} 25. Nxc3 {[%emt 0:05:54]} Qxd4+ {[%emt 0:00:10]} 26. Kh1 {[%emt 0:00:12]} Qxd3 {[%emt 0:01:11]} 27. Rf3 {[%emt 0:00:34]} Qc4 {[%emt 0:01:15]} 28. Qd2 {[%emt 0:01:12]} d4 {[%emt 0:03:12]} 29. Nd1 {[%emt 0:00:44]} Re2 {[%emt 0:00:15]} 30. Qa5 {[%emt 0:00:46]} b6 {[%emt 0:01:46]} 31. Qa3 {[%emt 0:00:27]} Qc2 {[%emt 0:00:27]} 32. Rc1 {[%emt 0:01:23]} Qd2 {[%emt 0:00:55]} 33. Rg3 {[%emt 0:01:35]} Be7 {[%emt 0:02:04]} 34. Qd3 {[%emt 0:02:52]} Qxd3 {[%emt 0:00:04]} 35. Rxd3 {[%emt 0:00:04]} c5 {[%emt 0:00:04]} 36. a4 {[%emt 0:00:49]} Bf6 {[%emt 0:01:09]} 37. a5 {[%emt 0:00:44]} c4 {[%emt 0:00:12]} 38. Ra3 {[%emt 0:00:20]} b5 {[%emt 0:00:12]} 39. Raa1 {[%emt 0:00:54]} b4 {[%emt 0:00:13]} 40. Rab1 {[%emt 0:00:00]} b3 {[%emt 0:00:00]} 41. Kg1 {[%emt 0:00:38]} c3 {[%emt 0:00:26]} 42. Nf2 {[%emt 0:00:16]} b2 {[%emt 0:00:26]} 43. Rf1 {[%emt 0:00:31]} Ba2 {[%emt 0:00:17]} 0-1

[Event "Mitropa Online Cup Women 2021"]
[Site "Hybrid"]
[Date "2021.05.04"]
[Round "8.5"]
[White "Sedina, Elena"]
[Black "Monpeurt, Cyrielle"]
[Result "1/2-1/2"]
[ECO "C26"]
[WhiteElo "2291"]
[BlackElo "2166"]
[Annotator "NA RC"]
[PlyCount "94"]
[EventDate "2021.05.04"]
[EventType "team-tourn"]
[EventCountry "NET"]
[SourceTitle "playchess.com"]
[Source "ChessBase"]
[SourceQuality "1"]
[WhiteTeam "Italy"]
[BlackTeam "France"]
[WhiteTeamCountry "ITA"]
[BlackTeamCountry "FRA"]
[TimeControl "40/5400+30:1800+30"]

1. e4 {[%emt 0:00:00]} e5 {[%emt 0:00:20]} 2. Nc3 {[%emt 0:00:29]} Nf6 {[%emt 0:00:14]} 3. g3 {[%emt 0:00:20]} Bc5 {[%emt 0:00:17]} 4. Bg2 {[%emt 0:00:18]} c6 {[%emt 0:00:19]} 5. Nge2 {[%emt 0:21:51]} d5 {[%emt 0:00:12]} 6. exd5 {[%emt 0:06:29]} cxd5 {[%emt 0:00:14]} 7. d4 {[%emt 0:03:08]} exd4 {[%emt 0:00:11]} 8. Nxd4 {[%emt 0:00:41]} O-O {[%emt 0:00:11]} 9. O-O {[%emt 0:01:19]} Bg4 {[%emt 0:00:20]} 10. f3 {[%emt 0:04:04]} Bxd4+ {[%emt 0:18:59]} 11. Qxd4 {[%emt 0:00:23]} Nc6 {[%emt 0:00:30]} 12. Qf2 {[%emt 0:07:56]} Be6 {[%emt 0:02:08]} 13. Rd1 {[%emt 0:10:32]} Qe7 {[%emt 0:07:39]} 14. Nb5 {[%emt 0:03:42]} Rac8 {[%emt 0:04:13]} 15. c3 {[%emt 0:01:41]} a6 {[%emt 0:05:37]} 16. Nd4 {[%emt 0:00:10]} b5 {[%emt 0:00:14]} 17. Bf1 {[%emt 0:10:44]} Qb7 {[%emt 0:10:25]} 18. Bg5 {[%emt 0:16:34]} Nd7 {[%emt 0:00:39]} 19. a4 {[%emt 0:02:01]} b4 {[%emt 0:01:27]} 20. Nxc6 {[%emt 0:01:01]} Rxc6 {[%emt 0:00:23]} 21. Be7 {[%emt 0:00:19]} bxc3 {[%emt 0:05:27]} 22. Bxf8 {[%emt 0:00:45]} Kxf8 {[%emt 0:00:39]} 23. bxc3 {[%emt 0:00:18]} Rxc3 {[%emt 0:00:10]} 24. Rac1 {[%emt 0:05:34]} Rb3 {[%emt 0:00:11]} 25. Qd4 {[%emt 0:01:32]} Rb4 {[%emt 0:01:31]} 26. Bxa6 {[%emt 0:00:22]} Ne5 {[%emt 0:04:52]} 27. Bxb7 {[%emt 0:00:34]} Nxf3+ {[%emt 0:00:15]} 28. Kg2 {[%emt 0:00:33]} Nxd4 {[%emt 0:00:06]} 29. Rxd4 {[%emt 0:00:36]} Rxd4 {[%emt 0:00:07]} 30. a5 {[%emt 0:00:01]} Ra4 {[%emt 0:00:56]} 31. a6 {[%emt 0:00:02]} Ke7 {[%emt 0:04:28]} 32. Kf3 {[%emt 0:00:17]} Kd6 {[%emt 0:06:19]} 33. Ke3 {[%emt 0:00:55]} d4+ {[%emt 0:13:37]} 34. Ke4 {[%emt 0:00:53]} f5+ {[%emt 0:01:31]} 35. Kd3 {[%emt 0:00:06]} Bd5 {[%emt 0:01:09]} 36. Rc8 {[%emt 0:00:51]} Be4+ {[%emt 0:02:04]} 37. Bxe4 {[%emt 0:00:19]} fxe4+ {[%emt 0:01:33]} 38. Kxe4 {[%emt 0:00:09]} Rxa6 {[%emt 0:01:00]} 39. Rh8 {[%emt 0:00:36]} h6 {[%emt 0:01:54]} 40. Rg8 {[%emt 0:00:00]} Ra7 {[%emt 0:00:00]} 41. Kxd4 {[%emt 0:03:05]} Ke6 {[%emt 0:01:20]} 42. Ke4 {[%emt 0:00:31]} Kf6 {[%emt 0:00:26]} 43. Kf4 {[%emt 0:01:55]} Ra4+ {[%emt 0:00:14]} 44. Kf3 {[%emt 0:00:07]} Ra3+ {[%emt 0:00:13]} 45. Kf4 {[%emt 0:00:48]} Ra4+ {[%emt 0:00:43]} 46. Kf3 {[%emt 0:00:05]} Ra3+ {[%emt 0:00:12]} 47. Kf4 {[%emt 0:00:03]} Ra4+ {[%emt 0:00:13]} 1/2-1/2